bitfinex/quotes_BTCUSD_20250525
["timestamp","ask_amount","ask_price","bid_price","bid_amount"]
[1748185447297,0.24530311,107100.0,107090.0,0.31332]
[1748185447502,0.24530311,107100.0,107090.0,0.001]
[1748185447656,0.24530311,107100.0,107090.0,0.31332]
[1748185447871,0.24530311,107100.0,107090.0,0.341]
[1748185448256,0.25642764,107100.0,107090.0,0.31332]
[1748185448635,0.25642764,107100.0,107090.0,0.65332]
[1748185449237,0.25642764,107100.0,107090.0,0.341]
[1748185449590,0.25642764,107100.0,107090.0,0.65332]
[1748185449793,0.25642764,107100.0,107090.0,0.16424]
[1748185450026,0.21352764,107100.0,107080.0,0.33557032]
[1748185450331,0.13536383,107090.0,107080.0,0.33557032]
[1748185450555,0.17580186,107090.0,107080.0,0.33557032]
[1748185451047,0.30749394,107090.0,107080.0,0.33557032]
[1748185451263,0.20656567,107090.0,107080.0,5.032e-05]
[1748185451466,0.21299534,107090.0,107080.0,0.34005032]
[1748185451741,0.21299534,107090.0,107080.0,0.00205032]
[1748185451946,0.01454085,107080.0,107070.0,0.31232]
[1748185452149,0.24799743,107080.0,107070.0,0.00015111]
[1748185452357,0.24799743,107080.0,107070.0,0.34015111]
[1748185452941,0.25684396,107080.0,107070.0,0.34015111]
[1748185453351,0.25984396,107080.0,107070.0,0.34015111]
[1748185453552,0.18473012,107080.0,107070.0,0.34015111]
[1748185453775,0.17018927,107080.0,107070.0,0.34015111]
[1748185454193,0.14978927,107080.0,107070.0,0.34015111]
[1748185454349,0.14203265,107080.0,107070.0,0.34015111]
[1748185454563,0.14703265,107080.0,107070.0,0.34015111]
[1748185455262,0.14703265,107080.0,107070.0,0.27724639]
[1748185455667,0.14335092,107080.0,107070.0,0.27724639]
[1748185456103,0.14335092,107080.0,107040.0,0.01029889]
[1748185456304,0.13494556,107070.0,107050.0,0.3124]
[1748185456472,0.16084274,107070.0,107050.0,0.3124]
[1748185456638,0.13854274,107070.0,107050.0,0.3124]
[1748185456839,0.14738927,107070.0,107050.0,0.3124]
[1748185457047,0.15845092,107070.0,107050.0,0.3124]
[1748185457290,0.13535092,107070.0,107060.0,0.34]
[1748185457972,0.13635092,107070.0,107060.0,0.34]
[1748185458374,0.13535092,107070.0,107060.0,0.34]
[1748185458605,0.13735092,107070.0,107060.0,0.34]
[1748185458800,0.13735092,107070.0,107060.0,0.33991841]
[1748185459008,0.25266281,107070.0,107060.0,0.33991841]
[1748185459810,0.25566281,107070.0,107060.0,0.33991841]
[1748185459996,0.22976563,107070.0,107060.0,0.31182852]
[1748185460209,0.25570654,107070.0,107060.0,0.31182852]
[1748185460403,0.22976563,107070.0,107060.0,0.31182852]
[1748185461675,0.21870398,107070.0,107060.0,0.31182852]
[1748185462105,0.21870398,107070.0,107060.0,0.3124]
[1748185462307,0.21870398,107070.0,107060.0,0.16328]
[1748185463534,0.21870398,107070.0,107060.0,0.3124]
[1748185464104,0.13438067,107070.0,107060.0,0.3124]
[1748185465084,0.13438067,107070.0,107040.0,0.36036112]
[1748185465214,0.13438067,107070.0,107060.0,0.50328]
[1748185466066,0.13438067,107070.0,107060.0,0.34]
[1748185466179,0.13438067,107070.0,107060.0,0.6524]
[1748185466586,0.13138067,107070.0,107060.0,0.6524]
[1748185467441,0.12353414,107070.0,107060.0,0.6524]
[1748185468003,0.12253414,107070.0,107060.0,0.6524]
[1748185468289,0.12553414,107070.0,107060.0,0.6524]
[1748185469606,0.17033414,107070.0,107060.0,0.50328]
[1748185469812,0.17325298,107070.0,107060.0,0.6524]
[1748185470207,0.17325298,107070.0,107060.0,0.50328]
[1748185470427,0.17033414,107070.0,107060.0,0.6524]
[1748185471938,0.13934556,107070.0,107060.0,0.6524]
[1748185474510,0.14226446,107070.0,107060.0,0.34]
[1748185475046,0.14226446,107070.0,107060.0,0.6524]
[1748185476090,0.15680531,107070.0,107060.0,0.50328]
[1748185476351,0.15680531,107070.0,107060.0,0.6524]
[1748185476969,0.16569187,107070.0,107060.0,0.6524]
[1748185477696,0.16569187,107070.0,107060.0,0.65192]
[1748185478908,0.16569187,107070.0,107060.0,0.5028]
[1748185479252,0.16569187,107070.0,107060.0,0.34]
[1748185479460,0.16569187,107070.0,107060.0,0.65192]
[1748185479933,0.16569187,107070.0,107060.0,0.34]
[1748185480354,0.16569187,107070.0,107060.0,0.65192]
[1748185481412,0.16569187,107070.0,107060.0,0.34]
[1748185481609,0.16569187,107070.0,107060.0,0.65192]
[1748185482197,0.16569187,107070.0,107060.0,0.5028]
[1748185482406,0.16569187,107070.0,107060.0,0.65192]
[1748185483079,0.16569187,107070.0,107060.0,0.34]
[1748185483438,0.16569187,107070.0,107060.0,0.65192]
[1748185483848,0.17212154,107070.0,107060.0,0.65192]
[1748185484464,0.17212154,107070.0,107060.0,0.34]
[1748185484797,0.18318319,107070.0,107060.0,0.34]
[1748185485004,0.18318319,107070.0,107060.0,0.65192]
[1748185485423,0.18318319,107070.0,107060.0,0.1628]
[1748185485624,0.20922062,107070.0,107060.0,0.1628]
[1748185485830,0.2210451,107070.0,107060.0,0.1628]
[1748185486056,0.2310451,107070.0,107040.0,0.35029851]
[1748185486263,0.08965469,107060.0,107050.0,0.1628]
[1748185486470,0.18920025,107060.0,107050.0,0.1628]
[1748185486889,0.23892992,107060.0,107050.0,0.1628]
[1748185487292,0.24999157,107060.0,107030.0,0.33544]
[1748185487492,0.15030607,107050.0,107040.0,0.31192]
[1748185487699,0.15030607,107050.0,107040.0,0.65192]
[1748185487864,0.0433,107040.0,107030.0,0.49828]
[1748185488060,0.13284556,107040.0,107030.0,0.9874]
[1748185488268,0.13184556,107040.0,107030.0,0.9874]
[1748185488497,0.15527297,107040.0,107030.0,0.6474]
[1748185488701,0.15527297,107040.0,107030.0,0.49828]
[1748185488898,0.15427297,107040.0,107030.0,0.33544]
[1748185489106,0.03544085,107030.0,107020.0,0.16284]
[1748185489307,0.12790648,107030.0,107020.0,0.16284]
[1748185489487,0.12590648,107030.0,107020.0,0.16284]
[1748185490171,0.11589304,107030.0,107010.0,0.16284]
[1748185490372,0.10408641,107020.0,107010.0,0.312]
[1748185490510,0.10408641,107020.0,107010.0,0.652]
[1748185490916,0.10408641,107020.0,107010.0,0.66195585]
[1748185491342,0.10408641,107020.0,107010.0,0.32195585]
[1748185491685,0.11297297,107020.0,107010.0,0.32195585]
[1748185491847,0.11197297,107020.0,107010.0,0.32195585]
[1748185492020,0.13367297,107020.0,107010.0,0.32195585]
[1748185492244,0.13767297,107020.0,107010.0,0.01095585]
[1748185492420,0.13767297,107020.0,107010.0,0.001]
[1748185492624,0.16027297,107020.0,107010.0,0.001]
[1748185492850,0.16319357,107020.0,107010.0,0.001]
[1748185494416,0.16319357,107020.0,107010.0,0.001]
[1748185497486,0.01454085,107010.0,107000.0,0.1808908]
[1748185497688,0.14998641,107010.0,107000.0,0.0180508]
[1748185498250,0.14998641,107010.0,107000.0,0.00767749]
[1748185498658,0.16887297,107010.0,107000.0,0.00767749]
[1748185498870,0.1727939,107010.0,107000.0,0.001]
[1748185499390,0.2237939,107010.0,107000.0,0.001]
[1748185499598,0.0459,107000.0,106980.0,0.64764]
[1748185499800,0.13836666,106990.0,106980.0,0.98778123]
[1748185500246,0.08954556,106990.0,106980.0,0.98778123]
[1748185500871,0.08954556,106990.0,106980.0,1.00898123]
[1748185501086,0.02194821,107010.0,106980.0,1.02978123]
[1748185501293,0.08954556,107000.0,106990.0,0.02298425]
[1748185501704,0.08954556,107000.0,106990.0,0.38378425]
[1748185501944,0.08954556,107000.0,106990.0,0.382]
[1748185502174,0.03121773,107010.0,106990.0,0.382]
[1748185502399,0.12076329,107010.0,107000.0,0.5312]
[1748185502619,0.03121773,107010.0,107000.0,0.5312]
[1748185503564,0.12076329,107010.0,107000.0,0.34]
[1748185503749,0.12176329,107010.0,107000.0,0.5104]
[1748185503947,0.001,107010.0,107000.0,0.5312]
[1748185504834,0.004,107010.0,107000.0,0.5322]
[1748185505253,0.001,107010.0,107000.0,0.5312]
[1748185505473,0.001,107010.0,107000.0,0.5322]
[1748185505683,0.002,107010.0,107000.0,0.5322]
[1748185508437,0.002,107010.0,107000.0,0.1922]
[1748185514762,0.002,107010.0,107000.0,0.4234]
[1748185515553,0.002,107010.0,107000.0,0.7634]
[1748185516128,0.002,107010.0,107000.0,0.6142]
[1748185516334,0.002,107010.0,107000.0,0.7634]
[1748185518465,0.002,107010.0,107000.0,0.4892]
[1748185521473,0.002,107010.0,107000.0,0.1492]
[1748185521658,0.002,107010.0,107000.0,0.15098279]
[1748185522695,0.002,107010.0,107000.0,0.31582279]
[1748185522910,0.002,107010.0,107000.0,0.31404]
[1748185524371,0.002,107010.0,107000.0,0.16484]
[1748185524611,0.002,107010.0,107000.0,0.31404]
[1748185525678,0.002,107010.0,107000.0,0.65404]
[1748185525890,0.002,107010.0,107000.0,0.34]
[1748185526120,0.0243,107010.0,107000.0,0.65404]
[1748185526329,0.002,107010.0,107000.0,0.65404]
[1748185527229,0.0467,107010.0,107000.0,0.34]
[1748185527448,0.13624556,107010.0,107000.0,0.31404]
[1748185527690,0.13916594,107010.0,107000.0,0.31404]
[1748185527885,0.13916594,107010.0,107000.0,0.16484]
[1748185528099,0.13916594,107010.0,107000.0,0.31404]
[1748185529311,0.14802605,107010.0,107000.0,0.31404]
[1748185530510,0.14802605,107010.0,107000.0,1.31404]
[1748185531548,0.14802605,107010.0,107000.0,1.0]
[1748185531685,0.14802605,107010.0,107000.0,1.31404]
[1748185531900,0.14802605,107010.0,107000.0,1.0]
[1748185532244,0.14802605,107010.0,107000.0,1.29217761]
[1748185532667,0.14510567,107010.0,107000.0,1.63217761]
[1748185533427,0.05556011,107010.0,107000.0,1.63217761]
[1748185534387,0.002,107010.0,107000.0,1.63217761]
[1748185536318,0.002,107010.0,107000.0,1.67547761]
[1748185536525,0.002,107010.0,107000.0,1.50387761]
[1748185536756,0.002,107010.0,107000.0,1.63217761]
[1748185537796,0.0243,107010.0,107000.0,1.63217761]
[1748185538197,0.002,107010.0,107000.0,1.63217761]
[1748185541464,0.0432,107030.0,107010.0,0.34]
[1748185541740,0.13274556,107030.0,107010.0,0.34]
[1748185542676,0.13674556,107030.0,107010.0,0.341]
[1748185543081,0.13874556,107030.0,107010.0,0.342]
[1748185544821,0.13874556,107030.0,107020.0,0.1648]
[1748185545041,0.13874556,107030.0,107020.0,0.314]
[1748185545542,0.13874556,107030.0,107020.0,0.1648]
[1748185545746,0.13874556,107030.0,107020.0,0.314]
[1748185545747,0.13274556,107030.0,107020.0,0.314]
[1748185545948,0.1332479,107030.0,107020.0,0.314]
[1748185546159,0.1402479,107030.0,107020.0,0.316]
[1748185546941,0.14912142,107030.0,107020.0,0.316]
[1748185548129,0.15204119,107030.0,107020.0,0.5068]
[1748185548354,0.15204119,107030.0,107020.0,0.656]
[1748185548981,0.18340019,107030.0,107020.0,0.656]
[1748185552347,0.18340019,107030.0,107020.0,0.6341413]
[1748185552541,0.18340019,107030.0,107020.0,0.44036888]
[1748185552778,0.18340019,107030.0,107020.0,0.314]
[1748185554740,0.18048042,107030.0,107020.0,0.314]
[1748185556969,0.18340039,107030.0,107020.0,0.314]
[1748185557165,0.15204139,107030.0,107020.0,0.314]
[1748185557364,0.14912142,107030.0,107020.0,0.314]
[1748185558365,0.15204139,107030.0,107020.0,0.654]
[1748185560240,0.15204139,107030.0,107020.0,0.1648]
[1748185560613,0.15204139,107030.0,107020.0,0.314]
[1748185562153,0.15555109,107030.0,107020.0,0.314]
[1748185562763,0.15847105,107030.0,107020.0,0.314]
[1748185564342,0.18984376,107030.0,107020.0,0.314]
[1748185564570,0.1869238,107030.0,107020.0,0.314]
[1748185566213,0.05834085,107020.0,107010.0,0.1648]
[1748185566417,0.15080685,107020.0,107010.0,0.1648]
[1748185566831,0.15723652,107020.0,107010.0,0.1648]
[1748185567459,0.17717169,107020.0,107010.0,0.1648]
[1748185567671,0.18117169,107020.0,107010.0,0.1658]
[1748185568089,0.18317169,107020.0,107010.0,0.1668]
[1748185568512,0.23598686,107020.0,107010.0,0.002]
[1748185568719,0.23306642,107020.0,107010.0,0.002]
[1748185569340,0.20628751,107020.0,107010.0,0.002]
[1748185569749,0.24134195,107020.0,107010.0,0.002]
[1748185570363,0.37579905,107020.0,107010.0,0.002]
[1748185570572,0.1038,107010.0,107000.0,0.97813761]
[1748185570805,0.22230265,107010.0,107000.0,0.97813761]
[1748185571018,0.23392267,107010.0,107000.0,0.97813761]
[1748185571456,0.24035234,107010.0,107000.0,0.97813761]
[1748185572165,0.27200532,107010.0,107000.0,0.97813761]
[1748185572546,0.57134945,107010.0,107000.0,0.97813761]
[1748185572765,0.58547411,107010.0,107000.0,0.97813761]
[1748185572979,0.73336998,107010.0,107000.0,0.97813761]
[1748185573390,0.54877528,107010.0,107000.0,0.97813761]
[1748185573994,0.54877528,107010.0,107000.0,0.9500212]
[1748185574207,0.52273902,107010.0,107000.0,0.9500212]
[1748185575780,0.32349902,107010.0,107000.0,0.9500212]
[1748185575981,0.29483351,107010.0,107000.0,0.9500212]
[1748185576698,0.22303894,107010.0,107000.0,1.0992612]
[1748185576904,0.20093894,107010.0,107000.0,1.0992612]
[1748185577311,0.19293894,107010.0,107000.0,1.0992612]
[1748185577507,0.19993894,107010.0,107000.0,1.4392612]
[1748185577889,0.21423894,107010.0,107000.0,1.41739214]
[1748185578299,0.22123894,107010.0,107000.0,1.41739214]
[1748185579735,0.22123894,107010.0,107000.0,1.07739214]
[1748185579952,0.23577979,107010.0,107000.0,1.07739214]
[1748185580360,0.16208641,107010.0,107000.0,1.07739214]
[1748185581898,0.16208641,107010.0,107000.0,0.92815214]
[1748185588545,0.10354556,107010.0,107000.0,1.47939214]
[1748185588854,0.10354556,107010.0,107000.0,1.50019538]
[1748185589059,0.014,107010.0,107000.0,1.47939214]
[1748185589842,0.007,107010.0,107000.0,1.47939214]
[1748185590253,0.009,107010.0,107000.0,1.47939214]
[1748185590635,0.007,107010.0,107000.0,1.47939214]
[1748185591065,0.001,107010.0,107000.0,1.48039214]
[1748185591497,0.002,107010.0,107000.0,1.48139214]
[1748185591711,0.001,107010.0,107000.0,1.48039214]
[1748185591907,0.001,107010.0,107000.0,1.48139214]
[1748185592155,0.002,107010.0,107000.0,1.48139214]
[1748185593234,0.09154556,107010.0,107000.0,1.27015214]
[1748185593431,0.09154556,107010.0,107000.0,1.58479214]
[1748185594103,0.09154556,107010.0,107000.0,1.27015214]
[1748185594308,0.09154556,107010.0,107000.0,1.58479214]
[1748185594514,0.09154556,107010.0,107000.0,1.43555214]
[1748185594782,0.09154556,107010.0,107000.0,1.27015214]
[1748185594944,0.09154556,107010.0,107000.0,1.58479214]
[1748185595560,0.09154556,107010.0,107000.0,1.43555214]
[1748185595743,0.13614556,107010.0,107000.0,1.58479214]
[1748185598371,0.09154556,107010.0,107000.0,1.60659214]
[1748185598586,0.09154556,107010.0,107000.0,1.62859214]
[1748185598944,0.002,107010.0,107000.0,1.62859214]
[1748185601368,0.002,107010.0,107000.0,1.96431214]
[1748185602314,0.002,107010.0,107000.0,3.21237838]
[1748185602523,0.002,107010.0,107000.0,3.30192394]
[1748185602727,0.002,107010.0,107000.0,3.32152153]
[1748185606102,0.07161618,107040.0,107020.0,0.0451]
[1748185606301,0.07161618,107040.0,107030.0,0.65508]
[1748185606863,0.07161618,107040.0,107030.0,0.31508]
[1748185607563,0.07961618,107040.0,107030.0,0.31608]
[1748185608909,0.07561618,107040.0,107030.0,0.16688]
[1748185609081,0.07561618,107040.0,107030.0,0.31608]
[1748185609759,0.16916174,107040.0,107030.0,0.31708]
[1748185610589,0.16916174,107040.0,107030.0,0.16788]
[1748185610761,0.16916174,107040.0,107030.0,0.31708]
[1748185612944,0.09754556,107040.0,107030.0,0.36208]
[1748185613149,0.008,107040.0,107030.0,0.38288324]
[1748185613354,0.002,107040.0,107030.0,0.38288324]
[1748185613577,0.002,107040.0,107030.0,1.10259224]
[1748185614024,0.002,107040.0,107030.0,0.36208]
[1748185614962,0.002,107040.0,107030.0,0.21288]
[1748185615087,0.002,107040.0,107030.0,0.002]
[1748185615316,0.002,107040.0,107030.0,0.317]
[1748185615900,0.002,107040.0,107030.0,0.3608]
[1748185616290,0.0473,107070.0,107040.0,0.34]
[1748185616496,0.08954556,107060.0,107050.0,0.48916]
[1748185616672,0.08954556,107060.0,107050.0,0.655]
[1748185617276,0.08954556,107060.0,107050.0,0.34]
[1748185617550,0.08954556,107060.0,107050.0,0.655]
[1748185617966,0.09154556,107060.0,107050.0,0.655]
[1748185619155,0.09454556,107060.0,107050.0,0.656]
[1748185621451,0.13894556,107060.0,107050.0,0.1668]
[1748185622261,0.15348641,107060.0,107050.0,0.1668]
[1748185622501,0.16235993,107060.0,107050.0,0.001]
[1748185623612,0.19035093,107060.0,107050.0,0.001]
[1748185623877,0.20141635,107060.0,107050.0,0.001]
[1748185625839,0.23266885,107060.0,107050.0,0.001]
[1748185626373,0.23266885,107060.0,107040.0,0.5058]
[1748185626596,0.15140596,107050.0,107040.0,0.5058]
[1748185627978,0.16027948,107050.0,107040.0,0.5068]
[1748185628803,0.16027948,107050.0,107040.0,0.48498437]
[1748185629206,0.16227948,107050.0,107040.0,0.48498437]
[1748185630553,0.22621669,107050.0,107040.0,0.16684]
[1748185630761,0.22329714,107050.0,107040.0,0.16684]
[1748185631139,0.22972681,107050.0,107040.0,0.16684]
[1748185631484,0.24079223,107050.0,107040.0,0.16684]
[1748185631689,0.22625138,107050.0,107040.0,0.50684]
[1748185631894,0.17542171,107050.0,107040.0,0.50684]
[1748185632868,0.16435629,107050.0,107040.0,0.50684]
[1748185633070,0.10041908,107050.0,107040.0,0.50684]
[1748185634386,0.13886483,107050.0,107040.0,0.50684]
[1748185634600,0.13886483,107050.0,107040.0,0.65512]
[1748185635180,0.13594556,107050.0,107040.0,0.65512]
[1748185635445,0.11314556,107050.0,107040.0,0.65512]
[1748185635815,0.09154556,107050.0,107040.0,0.65512]
[1748185638087,0.09154556,107050.0,107040.0,0.70082]
[1748185638405,0.002,107050.0,107040.0,0.70082]
[1748185640669,0.002,107050.0,107040.0,0.67762]
[1748185640968,0.002,107050.0,107040.0,0.65512]
[1748185641785,0.002,107050.0,107040.0,0.65508]
[1748185644348,0.002,107050.0,107040.0,0.67728]
[1748185646393,0.002,107050.0,107040.0,0.52812]
[1748185646509,0.002,107050.0,107040.0,0.65508]
[1748185650266,0.002,107050.0,107040.0,0.50592]
[1748185650504,0.0453,107050.0,107040.0,0.65508]
[1748185651493,0.13484556,107050.0,107040.0,0.50592]
[1748185651670,0.13484556,107050.0,107040.0,0.16592]
[1748185651877,0.13484556,107050.0,107040.0,0.31508]
[1748185652097,0.13484556,107050.0,107040.0,0.65508]
[1748185653031,0.13776504,107050.0,107040.0,0.65508]
[1748185653236,0.13484556,107050.0,107040.0,0.65508]
[1748185653465,0.14372705,107050.0,107040.0,0.65508]
[1748185654645,0.13484556,107050.0,107040.0,0.65508]
[1748185655752,0.13484556,107050.0,107040.0,0.50592]
[1748185655963,0.13484556,107050.0,107040.0,0.65508]
[1748185657492,0.11314556,107050.0,107040.0,0.65508]
[1748185657685,0.09154556,107050.0,107040.0,0.65508]
[1748185661100,0.09154556,107050.0,107040.0,0.67638]
[1748185661937,0.09154556,107050.0,107040.0,0.65508]
[1748185662309,0.09154556,107050.0,107040.0,0.69968]
[1748185662517,0.002,107050.0,107040.0,0.69968]
[1748185663323,0.002,107050.0,107040.0,0.67638]
[1748185663601,0.002,107050.0,107040.0,0.69948]
[1748185664387,0.002,107050.0,107040.0,0.50592]
[1748185664551,0.002,107050.0,107040.0,0.65508]
[1748185664752,0.002,107050.0,107040.0,0.70078]
[1748185668259,0.00888834,107070.0,107050.0,0.383]
[1748185668420,0.0984339,107070.0,107060.0,0.49094017]
[1748185668631,0.0984339,107070.0,107060.0,0.48916]
[1748185669396,0.08954556,107070.0,107060.0,0.65624]
[1748185669608,0.09254556,107070.0,107060.0,0.65624]
[1748185670016,0.08954556,107070.0,107060.0,0.65624]
[1748185670578,0.09454556,107070.0,107060.0,0.65724]
[1748185670940,0.09554556,107070.0,107060.0,0.65724]
[1748185671484,0.09854556,107070.0,107060.0,0.65824]
[1748185671884,0.09854556,107070.0,107060.0,0.68124]
[1748185672480,0.09854556,107070.0,107060.0,0.50908]
[1748185672743,0.09854556,107070.0,107060.0,0.65824]
[1748185673751,0.09854556,107070.0,107060.0,0.68608768]
[1748185673867,0.09854556,107070.0,107060.0,0.70908768]
[1748185674931,0.09854556,107070.0,107060.0,0.68608768]
[1748185675867,0.09854556,107070.0,107060.0,0.68604768]
[1748185676603,0.09854556,107070.0,107060.0,0.70904768]
[1748185676812,0.04601851,107090.0,107070.0,0.34]
[1748185676813,0.0431,107090.0,107070.0,0.34]
[1748185677016,0.08954556,107080.0,107070.0,0.34]
[1748185677252,0.08954556,107080.0,107070.0,0.48912]
[1748185678036,0.13264556,107080.0,107070.0,0.48912]
[1748185678213,0.13264556,107080.0,107070.0,0.49012]
[1748185678942,0.13264556,107080.0,107070.0,0.48912]
[1748185679423,0.13264556,107080.0,107070.0,0.34]
[1748185679652,0.13264556,107080.0,107070.0,0.48912]
[1748185680198,0.13464556,107080.0,107070.0,0.48912]
[1748185680396,0.13764556,107080.0,107070.0,0.48912]
[1748185681387,0.0459,107070.0,107060.0,0.3162]
[1748185681611,0.13544556,107070.0,107060.0,0.16708]
[1748185681813,0.13544556,107070.0,107060.0,0.3162]
[1748185682553,0.13644556,107070.0,107060.0,0.3162]
[1748185682795,0.13936446,107070.0,107060.0,0.3162]
[1748185682951,0.09346446,107070.0,107060.0,0.16704]
[1748185683179,0.09054556,107070.0,107060.0,0.16704]
[1748185683387,0.13464556,107070.0,107060.0,0.16704]
[1748185683609,0.13464556,107070.0,107060.0,0.50704]
[1748185684339,0.13464556,107070.0,107060.0,0.65616]
[1748185685644,0.16364556,107070.0,107060.0,0.65616]
[1748185686542,0.16656446,107070.0,107060.0,0.34]
[1748185686760,0.16364556,107070.0,107060.0,0.65616]
[1748185687755,0.16656446,107070.0,107060.0,0.65616]
[1748185688777,0.0951,107040.0,107030.0,0.33552]
[1748185688999,0.13464556,107040.0,107030.0,0.50256]
[1748185689206,0.13464556,107040.0,107030.0,0.65168]
[1748185689436,0.13464556,107040.0,107030.0,0.84256]
[1748185689639,0.13464556,107040.0,107030.0,0.65168]
[1748185689833,0.13464556,107040.0,107030.0,0.99168]
[1748185690000,0.13473936,107040.0,107030.0,0.99168]
[1748185690206,0.13473936,107040.0,107030.0,0.65568]
[1748185690519,0.13573936,107040.0,107030.0,0.66068]
[1748185690719,0.13473936,107040.0,107030.0,0.99568]
[1748185690919,0.13473936,107040.0,107030.0,0.99868]
[1748185691291,0.13473936,107040.0,107030.0,0.99468]
[1748185691714,0.13473936,107040.0,107030.0,0.99768]
[1748185692536,0.13473936,107040.0,107030.0,0.84856]
[1748185692782,0.13473936,107040.0,107030.0,0.99768]
[1748185694169,0.13473936,107040.0,107030.0,0.84856]
[1748185694338,0.14928021,107040.0,107030.0,0.84856]
[1748185694945,0.15219996,107040.0,107030.0,0.84856]
[1748185697310,0.18119996,107040.0,107030.0,0.84856]
[1748185697857,0.17828021,107040.0,107030.0,0.84556]
[1748185698062,0.18119996,107040.0,107030.0,0.84556]
[1748185698288,0.18119996,107040.0,107030.0,0.84256]
[1748185698619,0.18119996,107040.0,107030.0,0.84556]
[1748185699481,0.17828021,107040.0,107030.0,0.84556]
[1748185699690,0.16373936,107040.0,107030.0,0.84556]
[1748185703792,0.11863936,107040.0,107030.0,0.84556]
[1748185704165,9.38e-05,107040.0,107030.0,0.88977193]
[1748185704366,9.38e-05,107040.0,107030.0,0.84556]
[1748185704497,9.38e-05,107040.0,107030.0,0.86566]
[1748185706783,9.38e-05,107040.0,107030.0,0.85746]
[1748185708372,9.38e-05,107040.0,107030.0,0.84556]
[1748185711499,9.38e-05,107040.0,107030.0,0.87046904]
[1748185711957,9.38e-05,107040.0,107030.0,1.01962904]
[1748185719773,0.0500938,107040.0,107030.0,1.01962904]
[1748185720220,0.0034907,107040.0,107030.0,1.01962904]
[1748185722311,0.0034907,107040.0,107030.0,0.68410904]
[1748185722527,0.0478907,107040.0,107030.0,0.68410904]
[1748185722864,0.07511384,107060.0,107030.0,0.68410904]
[1748185723143,0.08954556,107050.0,107040.0,0.34]
[1748185723372,0.08954556,107050.0,107030.0,0.34410904]
[1748185723759,0.08954556,107050.0,107030.0,0.34310904]
[1748185723962,0.08954556,107050.0,107030.0,0.34110904]
[1748185724164,0.08954556,107050.0,107030.0,0.34410904]
[1748185724399,0.08954556,107050.0,107030.0,0.34210904]
[1748185724901,0.08954556,107050.0,107030.0,0.34110904]
[1748185725142,0.08954556,107050.0,107030.0,0.34210904]
[1748185725395,0.08954556,107050.0,107040.0,0.34]
[1748185725845,0.11224556,107050.0,107040.0,0.34]
[1748185726034,0.13534556,107050.0,107040.0,0.34]
[1748185726710,0.13634556,107050.0,107040.0,0.34]
[1748185727133,0.13634556,107050.0,107040.0,0.50356]
[1748185730631,0.13634556,107050.0,107040.0,0.16356]
[1748185738003,0.16922567,107050.0,107040.0,0.16356]
[1748185739685,0.16922567,107050.0,107040.0,0.50356]
[1748185744798,0.16270498,107050.0,107040.0,0.50356]
[1748185745259,0.11690498,107050.0,107030.0,0.02490904]
[1748185745400,0.0462,107040.0,107030.0,0.67762904]
[1748185745604,0.13574556,107040.0,107030.0,0.65272]
[1748185746608,0.13866517,107040.0,107030.0,0.65272]
[1748185746802,0.13866517,107040.0,107030.0,0.34]
[1748185746999,0.15320602,107040.0,107030.0,0.341]
[1748185747244,0.16210549,107040.0,107030.0,0.343]
[1748185747422,0.16210549,107040.0,107030.0,0.36730612]
[1748185747860,0.2262904,107040.0,107030.0,0.36730612]
[1748185748097,0.22337079,107040.0,107030.0,0.36730612]
[1748185748301,0.22337079,107040.0,107030.0,0.36630612]
[1748185748658,0.22637079,107040.0,107030.0,0.36630612]
[1748185749065,0.22637079,107040.0,107030.0,0.36430612]
[1748185749459,0.22837079,107040.0,107030.0,0.36430612]
[1748185749680,0.23943621,107040.0,107030.0,0.34]
[1748185749889,0.01454085,107030.0,107000.0,1.22672668]
[1748185750160,0.13574556,107020.0,107010.0,0.31326234]
[1748185750293,0.13574556,107020.0,107010.0,0.65326234]
[1748185750494,0.13574556,107020.0,107010.0,0.02478047]
[1748185750715,0.15028641,107020.0,107010.0,0.02478047]
[1748185750951,0.15918588,107020.0,107010.0,0.36478047]
[1748185751374,0.15918588,107020.0,107010.0,0.00050234]
[1748185751593,0.15918588,107020.0,107010.0,0.34050234]
[1748185751836,0.15918588,107020.0,107010.0,0.34150234]
[1748185752082,0.20639651,107020.0,107010.0,0.00150234]
[1748185752328,0.15918588,107020.0,107010.0,0.00050234]
[1748185752766,0.15918588,107020.0,107010.0,0.00250234]
[1748185753007,0.18144999,107020.0,107010.0,0.00050234]
[1748185753228,0.17310656,107020.0,107010.0,0.00050234]
[1748185753517,0.3204513,107020.0,107010.0,0.00050234]
[1748185753695,0.1712513,107020.0,107010.0,0.00050234]
[1748185753921,0.17417198,107020.0,107010.0,0.00050234]
[1748185754122,0.17317198,107020.0,107010.0,0.00050234]
[1748185754332,0.20655117,107020.0,107010.0,0.00050234]
[1748185754536,0.20363049,107020.0,107010.0,0.00050234]
[1748185754797,0.20563049,107020.0,107010.0,0.00150234]
[1748185755253,0.19456507,107020.0,107010.0,0.00150234]
[1748185756534,0.22256707,107020.0,107010.0,0.00150234]
[1748185757367,0.2136676,107020.0,107010.0,0.00150234]
[1748185757785,0.1856656,107020.0,107010.0,0.34150234]
[1748185758841,0.1856656,107020.0,107010.0,0.341]
[1748185759050,0.1856656,107020.0,107010.0,0.34065714]
[1748185759665,0.17112475,107020.0,107010.0,0.34065714]
[1748185760108,0.12492475,107020.0,107010.0,0.65345714]
[1748185761070,0.09354556,107020.0,107010.0,0.65345714]
[1748185761312,0.09354556,107020.0,107010.0,0.67625714]
[1748185761511,0.09354556,107020.0,107010.0,0.69875714]
[1748185762600,0.004,107020.0,107010.0,0.72216583]
[1748185763317,0.002,107020.0,107010.0,0.72150869]
[1748185763529,0.05856544,107050.0,107020.0,0.0228]
[1748185763872,0.08954556,107040.0,107030.0,0.48924]
[1748185766257,0.09154556,107040.0,107030.0,0.48924]
[1748185766818,0.09354556,107040.0,107030.0,0.48924]
[1748185767679,0.09354556,107040.0,107030.0,0.51264]
[1748185767935,0.09354556,107040.0,107030.0,0.53524]
[1748185768117,0.04154529,107060.0,107040.0,0.34]
[1748185768248,0.08478787,107050.0,107040.0,0.386]
[1748185768456,0.08478787,107050.0,107040.0,0.72537952]
[1748185769635,0.08478787,107050.0,107040.0,0.69876]